[Event "Rudolf Teschner GT 2022"]
[Site "Berlin"]
[Date "2022.05.28"]
[Round "6.6"]
[White "Greiner, Timo"]
[Black "Paulsen, Dirk"]
[Result "1/2-1/2"]
[ECO "B05"]
[WhiteElo "2049"]
[BlackElo "2309"]
[Annotator "TA"]
[PlyCount "84"]
[EventDate "2022.05.25"]
[EventType "swiss"]
[EventCountry "GER"]
[SourceTitle "playchess.com"]
[Source "ChessBase"]
[SourceQuality "1"]
[TimeControl "5400+30"]

{[%evp 18,84,20,0,32,37,104,0,0,-34,-14,-52,-43,-68,-40,-48,-46,-58,-31,-42,-44,-43,-33,-31,-34,-49,-34,-41,-36,-37,-13,-21,-13,-47,-11,-11,-11,-11,-11,-10,-12,-12,-27,-18,-13,-14,-7,-49,-55,-54,-54,-66,-51,-47,-38,-66,-72,-105,0,0,0,0,0,0,0,0,0,0,0]} 1. e4 {[%emt 0:00:05][%cal Be2e4,Be4e5][%mdl 32]} Nf6 {[%emt 0:02:41]} 2. e5 {[%emt 0:00:06]} Nd5 {[%emt 0:00:06]} 3. d4 {[%emt 0:00:07]} d6 {[%emt 0:00:02]} 4. Nf3 {[%emt 0:00:11]} Bg4 {[%emt 0:00:11]} 5. Be2 {[%emt 0:00:14]} c6 {[%emt 0:00:04]} 6. O-O {[%emt 0:01:42]} Bxf3 {[%emt 0:00:08]} 7. Bxf3 {[%emt 0:00:13]} dxe5 {[%emt 0:00:08]} 8. dxe5 {[%emt 0:00:10]} e6 {[%emt 0:00:05]} 9. Qe2 {[%emt 0:05:16]} Nd7 {[%emt 0:00:09]} 10. b3 {[%emt 0:08:00]} Bb4 {[%emt 0:00:59] B05: Alekhine's Defence: 4 Nf3 Bg4.} (10... Qc7 $5 {[%cal Rc7e5]}) 11. Bb2 {[%emt 0:03:07] [#]} Qg5 $146 {[%emt 0:06:53] [#]} (11... Qc7 $14) ({Predecessor:} 11... O-O 12. a3 Ba5 13. b4 Bb6 14. g3 Qg5 15. Bg2 Ne7 16. Nd2 Ng6 17. Nc4 Bc7 18. f4 Qe7 19. Rad1 Rab8 20. Kh1 c5 21. Nd6 Bxd6 22. exd6 Qd8 23. f5 exf5 24. Rxf5 {1-0 (24) Tonelli,C-Giuganino,S Italy 1984}) 12. Bxd5 {[%emt 0:09:55]} (12. g3 $1 $16) 12... exd5 $11 {[%emt 0:00:21]} 13. e6 {[%emt 0:03:04]} Nf6 {[%emt 0:00:26]} 14. exf7+ {[%emt 0:00:34]} Kxf7 {[%emt 0:00:11]} 15. Nc3 {[%emt 0:25:05]} Rhe8 {[%emt 0:00:19]} 16. Qd3 {[%emt 0:03:34]} Qg6 {[%emt 0:00:28]} 17. Rfd1 {[%emt 0:05:21][%cal Bf1d1,Bd1e1,Be1e2][%mdl 32]} Rad8 {[%emt 0:06:07] aiming for ...Qxd3.} 18. a3 {[%emt 0:04:22]} Bd6 {[%emt 0:02:53]} 19. Qxg6+ {[%emt 0:01:33]} hxg6 {[%emt 0:00:23][%cal Bh7g6,Bg6g5,Bg5g4][%mdl 32]} 20. Re1 {[%emt 0:01:53]} g5 {[%emt 0:00:15]} 21. Ne2 {[%emt 0:01:10]} g4 {[%emt 0:00:32]} 22. Ng3 {[%emt 0:06:58]} Bxg3 {[%emt 0:02:34]} (22... c5 {seems wilder.} 23. Nf5 Bf4 24. b4 b6) 23. hxg3 {[%emt 0:01:16]} Ne4 {[%emt 0:00:12]} 24. Re2 {[%emt 0:03:32]} Rd6 {[%emt 0:11:31]} 25. Rae1 {[%emt 0:00:49]} Rh6 {[%emt 0:00:36] ( -> ...Reh8)} 26. f3 $1 {[%emt 0:01:00] [#]} Rh1+ $1 {[%emt 0:02:17]} 27. Kxh1 {[%emt 0:00:04]} Nxg3+ {[%emt 0:00:07]} 28. Kg1 {[%emt 0:00:52]} Rxe2 {[%emt 0:00:52]} 29. Rxe2 {[%emt 0:00:06]} Nxe2+ {[%emt 0:00:05][%mdl 4096] Endgame KB-KN} 30. Kf2 {[%emt 0:00:04]} Nf4 {[%emt 0:00:16]} 31. fxg4 {[%emt 0:01:09]} g6 {[%emt 0:01:21]} 32. Bc1 {[%emt 0:01:30]} Ne6 {[%emt 0:00:03]} 33. Bb2 {[%emt 0:02:11]} Ke7 {[%emt 0:00:40]} 34. Be5 {[%emt 0:00:29]} Kd7 {[%emt 0:00:34]} 35. Ke3 {[%emt 0:00:47]} c5 {[%emt 0:00:13]} 36. c3 {[%emt 0:01:17]} Kc6 {[%emt 0:00:49]} 37. a4 {[%emt 0:01:14]} d4+ {[%emt 0:03:44]} ({Black should play} 37... b5 $17) 38. Ke4 $1 {[%emt 0:03:13][%cal Rc3d4] The position is equal.} ({Much worse is} 38. cxd4 Kd5 39. Kd3 Nxd4 $17) 38... Ng5+ {[%emt 0:01:40]} 39. Kf4 $1 {[%emt 0:00:31]} Ne6+ {[%emt 0:19:22]} 40. Ke4 {[%emt 0:00:06][%cal Rc3d4]} Ng5+ {[%emt 0:01:31]} 41. Kf4 $1 {[%emt 0:00:07]} Ne6+ {[%emt 0:00:06]} 42. Ke4 {[%emt 0:00:04][%cal Rc3d4]} Ng5+ {[%emt 0:00:03] Weighted Error Value: White=0.10 (very precise) /Black=0.13 (very precise)} 1/2-1/2

[Event "Rudolf Teschner GT 2022"]
[Site "Berlin"]
[Date "2022.05.29"]
[Round "7.2"]
[White "Van den Doel, Erik"]
[Black "Strache, Michael"]
[Result "1-0"]
[ECO "A80"]
[WhiteElo "2581"]
[BlackElo "2302"]
[Annotator "TA"]
[PlyCount "91"]
[EventDate "2022.05.25"]
[EventType "swiss"]
[EventCountry "GER"]
[SourceTitle "playchess.com"]
[Source "ChessBase"]
[SourceQuality "1"]
[TimeControl "5400+30"]

{[%evp 9,91,38,53,49,50,36,34,34,45,33,62,54,59,56,66,68,87,48,62,54,103,37,35,26,38,30,41,39,43,40,64,56,55,69,117,117,116,117,106,106,107,116,138,139,143,149,181,143,143,142,142,142,142,134,182,173,285,281,400,404,354,366,436,415,687,504,6102,7105,29978,29979,29979,29980,29984,29984,29990,29987,29993,29994,29995,29993,29993,29994,29994,29995]} 1. d4 {[%emt 0:07:54]} f5 {[%emt 0:00:06]} 2. Nc3 {[%emt 0:00:04]} Nf6 {[%emt 0:00:05]} 3. Bg5 {[%emt 0:00:03]} d5 {[%emt 0:00:03]} 4. e3 {[%emt 0:00:05]} c6 {[%emt 0:00:08]} 5. Bd3 {[%emt 0:06:16]} Be6 {[%emt 0:01:41]} 6. Nf3 {[%emt 0:02:32] A80: Dutch Defence: Unusual White second moves.} g6 {[%emt 0:01:13]} 7. O-O {[%emt 0:06:30]} Bg7 {[%emt 0:00:37]} 8. Ne2 {[%emt 0:00:05] [#] White is slightly better.} Ne4 $146 {[%emt 0:01:44]} ({Predecessor:} 8... Nbd7 9. h3 O-O 10. Bf4 Ne4 11. b3 Kh8 12. c4 Bg8 13. Qc2 a5 14. a3 a4 15. bxa4 dxc4 16. Bxc4 Bxc4 17. Qxc4 {1-0 (41) Khurtsidze,N (2383)-Mikadze,M (2280) Tbilisi 2017}) 9. Rc1 {[%emt 0:06:26]} Bf7 {[%emt 0:15:15]} 10. c4 $1 {[%emt 0:00:49]} Nxg5 {[%emt 0:00:28]} 11. Nxg5 {[%emt 0:00:06]} e6 $1 {[%emt 0:00:03] [#]} 12. Qb3 $1 {[%emt 0:03:26]} Qb6 {[%emt 0:00:40]} (12... Qxg5 $2 13. Qxb7 O-O 14. Qxa8 $18) (12... Qe7 13. Nf4) 13. Qa3 {[%emt 0:11:22] Black must now prevent cxd5.} Bf8 {[%emt 0:05:05]} 14. c5 {[%emt 0:01:05]} Qc7 {[%emt 0:05:59] [#]} (14... Qd8 $14 15. Qb3 (15. Nxf7 Kxf7 16. b4 Nd7 $14) 15... b5) 15. b4 {[%emt 0:01:19] White is much more active.} (15. Nf4 $1 $16) 15... Be7 $14 {[%emt 0:03:10]} 16. Nf3 $36 {[%emt 0:02:27][%mdl 2048] White has some pressure.} Nd7 {[%emt 0:02:49]} 17. b5 {[%emt 0:03:37]} O-O {[%emt 0:00:54]} 18. Rb1 {[%emt 0:06:26]} Rfb8 {[%emt 0:08:20]} 19. Rb3 {[%emt 0:04:37]} g5 {[%emt 0:02:01]} 20. Rfb1 {[%emt 0:01:30]} g4 {[%emt 0:00:28]} 21. Ne1 {[%emt 0:04:42]} Be8 {[%emt 0:14:55]} (21... cxb5 $14 22. Bxb5 Nf6) 22. bxc6 $16 {[%emt 0:05:09]} bxc6 {[%emt 0:00:17]} 23. Qa6 {[%emt 0:00:33]} Rxb3 {[%emt 0:02:12]} 24. axb3 {[%emt 0:00:05]} Rb8 {[%emt 0:04:45]} 25. b4 {[%emt 0:00:06]} Rb7 {[%emt 0:00:23]} 26. Nf4 {[%emt 0:03:29]} Kf7 {[%emt 0:02:25]} 27. h3 {[%emt 0:02:22]} Bg5 {[%emt 0:06:20]} 28. g3 {[%emt 0:02:20]} Bxf4 {[%emt 0:01:10]} 29. exf4 {[%emt 0:00:25]} h5 {[%emt 0:03:08]} 30. hxg4 {[%emt 0:01:58]} hxg4 {[%emt 0:00:05]} 31. Bc2 {[%emt 0:01:20]} Ke7 {[%emt 0:02:51]} (31... Nf8 $16 32. Nd3 Ng6) 32. Nd3 {[%emt 0:00:24]} Kd8 {[%emt 0:01:04]} (32... Kf6 {was worth a try.} 33. Kg2 Kg7) 33. Kg2 $18 {[%emt 0:00:33]} Nb8 {[%emt 0:01:24]} (33... Ke7 $142 34. Rh1 Kf6) 34. Qa1 {[%emt 0:00:41]} ({Inferior is} 34. Qa5 Qxa5 35. bxa5 Rxb1 36. Bxb1 Na6 $11) 34... Qg7 {[%emt 0:01:10]} 35. Rh1 {[%emt 0:01:11] Prevents Qh8.} Qg8 {[%emt 0:01:03]} 36. Qe1 {[%emt 0:01:31]} Nd7 {[%emt 0:01:44]} (36... Rg7 $142 37. Rh2 Kc7) 37. Ba4 {[%emt 0:00:17]} Kc7 {[%emt 0:01:32]} (37... Nf6 $142 38. Qe5 Qf8 39. Qxe6 Qe7) 38. b5 {[%emt 0:00:25][%cal Bb4b5,Bb5c6,Bc6d7][%mdl 32]} Nb8 {[%emt 0:01:28]} 39. Qe5+ {[%emt 0:00:54] White mates.} Kc8 {[%emt 0:01:01]} 40. Rh8 {[%emt 0:02:10]} Qf7 {[%emt 0:00:25]} 41. bxc6 {[%emt 0:00:49]} Re7 {[%emt 0:00:08]} 42. Qd6 {[%emt 0:03:10]} Na6 {[%emt 0:01:07]} 43. Ne5 {[%emt 0:00:20]} Qg7 {[%emt 0:00:31]} 44. Rxe8+ {[%emt 0:00:24]} Rxe8 {[%emt 0:00:04]} 45. Qd7+ {[%emt 0:00:05]} Qxd7 {[%emt 0:00:04]} 46. cxd7+ {[%emt 0:00:02] Weighted Error Value: White=0.10 (very precise) /Black=0.40} 1-0

[Event "Rudolf Teschner GT 2022"]
[Site "Berlin"]
[Date "2022.05.29"]
[Round "7.3"]
[White "Spiess, Gunter"]
[Black "Weihrauch, Jakob"]
[Result "1-0"]
[ECO "E04"]
[WhiteElo "2388"]
[BlackElo "2139"]
[Annotator "TA"]
[PlyCount "89"]
[EventDate "2022.05.25"]
[EventType "swiss"]
[EventCountry "GER"]
[SourceTitle "playchess.com"]
[Source "ChessBase"]
[SourceQuality "1"]
[TimeControl "5400+30"]

{[%evp 20,89,12,24,27,20,75,72,116,81,97,43,44,51,50,43,43,38,37,36,118,119,115,111,161,148,171,155,156,123,176,168,164,169,202,100,172,162,212,168,258,240,266,197,376,248,255,249,316,314,312,314,305,262,311,271,355,344,338,351,443,435,532,487,640,619,611,604,843,667,2266,2060]} 1. d4 {[%emt 0:00:02]} Nf6 {[%emt 0:00:06]} 2. c4 {[%emt 0:00:03]} e6 {[%emt 0:00:04]} 3. g3 {[%emt 0:01:01]} d5 {[%emt 0:00:36]} 4. Nf3 {[%emt 0:00:04]} dxc4 {[%emt 0:00:29]} 5. Bg2 {[%emt 0:01:56]} c5 {[%emt 0:00:26]} 6. O-O {[%emt 0:00:08]} Nc6 {[%emt 0:04:41]} 7. dxc5 {[%emt 0:00:17]} Qxd1 {[%emt 0:00:08]} 8. Rxd1 {[%emt 0:00:02]} Bxc5 {[%emt 0:00:10]} 9. Nbd2 {[%emt 0:00:11]} c3 {[%emt 0:00:05]} 10. bxc3 {[%emt 0:00:04]} O-O {[%emt 0:01:31]} 11. Nb3 {[%emt 0:00:08]} Be7 {[%emt 0:01:17] E04: Open Catalan: 5 Nf3.} 12. c4 {[%emt 0:02:32]} Ne4 {[%emt 0:08:07]} (12... Bd7 $11) 13. Bb2 $16 {[%emt 0:02:35] [#]} Nc5 $146 {[%emt 0:08:19] White is better.} ({Predecessor:} 13... a5 14. Nfd4 Nxd4 15. Nxd4 Nc5 16. Nb5 Na4 17. Be5 f6 18. Bd6 Bxd6 19. Rxd6 Ra6 {1-0 (33) Stefanova,A (2462)-Nilsson,J (2215) Chess.com INT 2020}) 14. Nxc5 {[%emt 0:16:27] White is more active.} Bxc5 {[%emt 0:00:05]} 15. Nd2 {[%emt 0:05:04]} (15. Ne5 $16) 15... Be7 $14 {[%emt 0:24:59]} 16. Ne4 {[%emt 0:03:48]} e5 {[%emt 0:08:18]} 17. Nd6 {[%emt 0:06:42]} Bxd6 {[%emt 0:01:16]} 18. Rxd6 {[%emt 0:00:02]} Be6 {[%emt 0:00:17]} 19. c5 {[%emt 0:08:10]} Na5 {[%emt 0:02:36]} ({Black should play} 19... Rac8 $14) 20. Bxe5 $16 {[%emt 0:06:29][%cal Bb2e5,Be5f4,Bf4g5][%mdl 32]} Nc4 {[%emt 0:03:16][%csl LRd6,LRe5]} 21. Bf4 {[%emt 0:00:47]} g5 {[%emt 0:11:37] [#]} (21... Nxd6 $16 22. Bxd6 Rfe8) 22. Rxe6 $1 $18 {[%emt 0:05:10][%mdl 512]} fxe6 {[%emt 0:00:35]} 23. Bxg5 {[%emt 0:00:12]} Rf7 {[%emt 0:07:22]} 24. Rb1 {[%emt 0:10:34]} Rc8 {[%emt 0:01:44]} (24... Na5 $16 {was worth a try.}) 25. Bh3 {[%emt 0:00:22]} (25. Rxb7 Rxb7 26. Bxb7 Rxc5 $11) (25. Bxb7 $6 Rxc5 26. h4 Kg7 $14) 25... Rc6 {[%emt 0:00:44]} 26. Rb4 {[%emt 0:00:27]} Rg7 {[%emt 0:03:56][%cal Oa7a5]} 27. Bc1 {[%emt 0:05:23]} ({Worse is} 27. Rxc4 Rxg5 28. f4 Rd5 $11) (27. Bf6 $18 {and White stays clearly on top.} Rg6 28. Bd4 (28. Rxc4 Rxf6 29. Bg2 Rc7 $11)) 27... Na5 {[%emt 0:00:42]} (27... b5 $16 {was necessary.}) 28. Be3 {[%emt 0:01:48]} e5 {[%emt 0:03:06]} (28... Re7 {might work better.} 29. Ra4 Ra6) 29. Bg2 {[%emt 0:05:35]} Ra6 {[%emt 0:02:01]} (29... Rc8 $142 30. Bd5+ Kh8) 30. Bd5+ {[%emt 0:00:11]} Kf8 {[%emt 0:01:04]} 31. Rh4 {[%emt 0:05:33]} Ke7 $2 {[%emt 0:01:36]} (31... Rd7) 32. Rh5 {[%emt 0:01:05]} Nc6 {[%emt 0:00:50]} 33. h4 {[%emt 0:00:41] Strongly threatening Bh6.} Kd7 {[%emt 0:00:20]} 34. Bh6 {[%emt 0:00:43]} Rg6 {[%emt 0:01:18]} 35. Bg5 {[%emt 0:00:17] This bishop pair is nice.} h6 {[%emt 0:00:28]} 36. Bxh6 {[%emt 0:00:19] Threatens to win with Bg5.} ({Weaker is} 36. Rxh6 Rxh6 37. Bxh6 Ne7 38. c6+ bxc6 $16) 36... Nb4 {[%emt 0:01:49]} 37. c6+ $1 {[%emt 0:00:02]} bxc6 {[%emt 0:00:11]} 38. Bc4 {[%emt 0:00:37]} Ra4 {[%emt 0:01:00]} 39. Bb3 {[%emt 0:00:06]} Ra6 {[%emt 0:00:28]} 40. Be3 {[%emt 0:00:56] Black must now prevent Rh7+. White is clearly winning.} Kd6 {[%emt 0:00:53]} 41. Rh7 {[%emt 0:00:22] h5 is the strong threat.} c5 {[%emt 0:01:05]} 42. h5 {[%emt 0:00:09]} Rf6 {[%emt 0:00:42]} 43. g4 {[%emt 0:01:12][%cal Bg3g4,Bg4g5][%mdl 32] aiming for g5.} Rf8 {[%emt 0:01:06]} 44. g5 {[%emt 0:01:09]} Nxa2 {[%emt 0:00:35]} 45. Rh6+ {[%emt 0:00:12][%mdl 64] Skewer.  Weighted Error Value: White=0.21 (precise) /Black=0.42} 1-0

[Event "Rudolf Teschner GT 2022"]
[Site "Berlin"]
[Date "2022.05.29"]
[Round "7.4"]
[White "Klenburg, Michael"]
[Black "Tscheuschner, Georg"]
[Result "1/2-1/2"]
[ECO "B23"]
[WhiteElo "2346"]
[BlackElo "2150"]
[Annotator "TA"]
[PlyCount "109"]
[EventDate "2022.05.25"]
[EventType "swiss"]
[EventCountry "GER"]
[SourceTitle "playchess.com"]
[Source "ChessBase"]
[SourceQuality "1"]
[TimeControl "5400+30"]

{[%evp 9,109,0,0,0,-10,0,0,-26,8,18,7,1,28,0,0,0,0,0,0,-39,-8,-39,-21,-30,-37,-192,-205,-512,-512,-426,-113,-134,-126,-135,-93,-555,0,0,0,0,0,0,69,0,0,-113,-97,-325,-129,-104,78,-219,-210,-211,-204,-249,-243,-270,-245,-313,-312,-336,-336,-429,-416,-425,-411,-383,-372,-423,-311,-380,-370,-318,-360,-341,-347,-319,-306,-374,-349,-498,-406,-474,-432,-419,0,-452,-416,-393,-381,-357,-45,-45,-50,-46,0,0,0,-46,0,0]} 1. e4 {[%emt 0:00:08]} c5 {[%emt 0:00:06]} 2. Nc3 {[%emt 0:00:28]} d6 {[%emt 0:01:19]} 3. d4 {[%emt 0:00:16]} cxd4 {[%emt 0:00:05]} 4. Qxd4 {[%emt 0:00:06]} Nc6 {[%emt 0:00:56]} 5. Qd2 {[%emt 0:00:10]} g6 {[%emt 0:00:48]} 6. b3 {[%emt 0:00:34] B23: Closed Sicilian: Lines without g3.} Bh6 {[%emt 0:00:06]} 7. f4 {[%emt 0:00:25]} Nf6 {[%emt 0:00:10]} 8. Bb2 {[%emt 0:00:34]} O-O {[%emt 0:00:07]} 9. O-O-O {[%emt 0:00:35]} e5 {[%emt 0:00:14] 9...e5 scores better than 9...a5.} 10. g3 {[%emt 0:01:47]} Re8 {[%emt 0:00:05]} 11. Bg2 {[%emt 0:04:22]} (11. Qxd6 Bg4 12. Qxd8 Rexd8 13. Rxd8+ Rxd8 $11) 11... exf4 {[%emt 0:02:51][%cal Of4f3] Hoping for ...f3!} 12. gxf4 {[%emt 0:00:12]} Bg4 {[%emt 0:00:06]} 13. Rf1 {[%emt 0:01:50] [#]} a5 $146 {[%emt 0:00:08][%cal Oa5a4]} ({Predecessor:} 13... Bg7 14. h3 Bh5 15. Nge2 Bxe2 16. Qxe2 Nxe4 17. Nxe4 d5 18. Rd1 Qa5 19. a3 dxe4 20. Bxe4 {1-0 (29) Bhakti,K (2388)-Prraneeth,V (2409) Budapest 2022}) 14. a4 {[%emt 0:11:58]} (14. h3 $5 {[%cal Rh3g4]} Bh5 15. Kb1 $11) 14... Rc8 {[%emt 0:00:27][%cal Od6d5]} 15. Kb1 {[%emt 0:08:08]} Nb4 {[%emt 0:11:21][%cal Od6d5]} 16. h3 {[%emt 0:02:33]} Bh5 {[%emt 0:02:31]} 17. Rf2 $2 {[%emt 0:18:52]} ({White should play} 17. Nf3 $15) 17... Qb6 $19 {[%emt 0:23:13]} 18. Qe1 $2 {[%emt 0:07:26]} (18. Nf3 {is more resistant.} Bxf4 19. Qxf4 Qxf2 20. Qd2 Qxd2 21. Nxd2) 18... Bg7 {[%emt 0:12:19][%cal Of6e4]} 19. Nge2 {[%emt 0:12:20] [#]} Nxe4 {[%emt 0:04:52]} 20. Bxe4 $17 {[%emt 0:00:38] [#]} Rxe4 $1 {[%emt 0:02:20][%mdl 512]} 21. Nxe4 {[%emt 0:02:31]} Bxb2 {[%emt 0:14:01] This bishop pair is nice.} 22. N2g3 $2 {[%emt 0:01:25][%mdl 8192]} (22. Kxb2 $2 Rxc2+ 23. Kb1 (23. Ka1 $2 Bxe2 24. Nc3 Qd4 $19) 23... Nd3 24. Kxc2 Nxe1+ 25. Rxe1 d5 26. Nf6+ Kh8 $19) (22. N2c3 $17 Bxc3 23. Nxc3 Rxc3 24. Qxc3 Qxf2 25. Re1) 22... d5 $2 {[%emt 0:04:09]} ({Black should try} 22... Bd4 $19 {[%cal Ob4c2] White must now prevent ...Nxc2!} 23. Rhh2 (23. Nxh5 $2 Nxc2 24. Ka2 Nxe1 $19) 23... d5) 23. Nxh5 $11 {[%emt 0:04:18][%cal Oe4g5] Ng5! is the strong threat. Really sharp!} dxe4 {[%emt 0:04:33]} 24. Kxb2 {[%emt 0:00:44][%cal Of2d2] Strongly threatening Rd2!} Qd4+ {[%emt 0:00:44]} 25. Kb1 {[%emt 0:01:42] aiming for Rd2.} e3 {[%emt 0:03:52] Against Rd2} (25... gxh5 $2 26. Rd2 Qf6 27. Qxe4 $18) (25... Nd5 $1 $11 26. Rd2 Nc3+ 27. Kc1 Na2+ 28. Kb1 Nc3+ 29. Kc1 Na2+ 30. Kb1 Nc3+) 26. Nf6+ {[%emt 0:02:32]} Kg7 {[%emt 0:00:01]} 27. Re2 {[%emt 0:04:07]} Qxf6 $40 {[%emt 0:00:35][%mdl 128] White is in trouble.} 28. Rhh2 $2 {[%emt 0:00:54]} (28. Qc1 $17) 28... Nd5 $2 {[%emt 0:01:34]} (28... Qxf4 $19 {and Black stays clearly on top.} 29. Qc1 Nd5) 29. Rxe3 {[%emt 0:00:18]} Qxf4 $2 {[%emt 0:04:27]} (29... Nxe3 $17 30. Qxe3 Rc3) 30. Rhe2 $2 {[%emt 0:00:29][%mdl 8192]} (30. Rg3 $16) 30... Nxe3 $19 {[%emt 0:00:11]} 31. Rxe3 {[%emt 0:00:04][%mdl 4096] Endgame KQR-KQR} b6 {[%emt 0:00:46]} 32. Rd3 {[%emt 0:03:22]} h5 {[%emt 0:00:41][%cal Bh7h5,Bh5h4][%mdl 32]} 33. Qg1 {[%emt 0:00:45]} Rc6 {[%emt 0:00:37]} 34. Qg2 {[%emt 0:05:00]} Re6 {[%emt 0:01:31] Threatens to win with ...Re1+.} 35. Rd1 {[%emt 0:00:33] Inhibits Re1.} h4 {[%emt 0:00:37]} 36. Rf1 {[%emt 0:02:22]} Qg3 {[%emt 0:01:02]} 37. Qb7 {[%emt 0:01:07]} Re1+ {[%emt 0:00:18]} 38. Rxe1 {[%emt 0:00:03]} Qxe1+ {[%emt 0:00:03] KQ-KQ} 39. Ka2 {[%emt 0:00:02]} Qe3 {[%emt 0:01:01]} 40. Qd7 {[%emt 0:00:24]} Qe4 {[%emt 0:01:32]} 41. Qd2 {[%emt 0:01:08]} Qf5 {[%emt 0:02:12]} 42. Qd4+ {[%emt 0:00:56]} Qf6 {[%emt 0:00:01]} 43. Qe3 {[%emt 0:00:50]} g5 {[%emt 0:00:10]} 44. c3 {[%emt 0:00:40]} Kh6 {[%emt 0:00:36]} 45. c4 {[%emt 0:01:56]} (45. Qd2 $142) 45... Qd6 {[%emt 0:01:57]} 46. Qf3 {[%emt 0:00:17]} Qd2+ {[%emt 0:01:09]} 47. Ka3 {[%emt 0:00:24]} Qd6+ {[%emt 0:00:11]} 48. Ka2 $1 {[%emt 0:00:04]} Kg6 {[%emt 0:00:23]} 49. Qa8 {[%emt 0:00:30]} Qh2+ {[%emt 0:00:42]} 50. Ka3 {[%emt 0:00:05]} Qxh3 $2 {[%emt 0:00:32]} (50... Qe5 $19 {[%cal Re5a1]} 51. Ka2 f5 52. Qg8+ Qg7 53. Qe8+ Qf7) 51. Qg8+ $15 {[%emt 0:00:06]} Kf6 {[%emt 0:01:00]} 52. Qd8+ {[%emt 0:00:08]} Kg6 {[%emt 0:00:20]} (52... Ke5 $15 {was preferrable.} 53. Qxg5+ f5 54. Qe7+ Kf4 55. Qd6+ Kf3 56. Qxb6 Qf1 57. Qb7+ (57. Qxa5 Qa1+ 58. Kb4 Qe1+ 59. Kb5 Qxa5+ 60. Kxa5 h3 $19) 57... Kg3 58. Qg7+ Kf3 59. Qb7+ (59. Qc3+ Ke4 $15) 59... Kf2 60. Qa7+ Kg2 61. Qg7+ Kf3 62. Qb7+ (62. Qc3+ Ke4 $15)) 53. Qg8+ $11 {[%emt 0:00:05]} Kf6 {[%emt 0:00:22]} (53... Kh5 $11 54. Qxf7+ Kg4 55. Qe6+ Kg3 56. Qe3+ Kh2 57. Qxg5 (57. Qxb6 $2 Qc3 $17) 57... Qg3) 54. Qd8+ $15 {[%emt 0:00:06]} Kg6 {[%emt 0:01:41]} (54... Ke5 $15 55. Qxg5+ f5 56. Qe7+ Kf4 57. Qd6+ Kf3 58. Qd3+ Kg4 59. Qd4+ f4 60. Qg7+ Kf3 61. Qc3+ Kg2 62. Qd2+ Kg1 63. Qd1+ Qf1 64. Qg4+ Qg2 65. Qxf4 h3) 55. Qg8+ {Weighted Error Value: White=0.57/Black=0.61} 1/2-1/2

[Event "Rudolf Teschner GT 2022"]
[Site "Berlin"]
[Date "2022.05.29"]
[Round "7.5"]
[White "Jandke, Manfred"]
[Black "Sreyas Payyappat"]
[Result "0-1"]
[ECO "A39"]
[WhiteElo "2074"]
[BlackElo "2169"]
[Annotator "TA"]
[PlyCount "84"]
[EventDate "2022.05.25"]
[EventType "swiss"]
[EventCountry "GER"]
[SourceTitle "playchess.com"]
[Source "ChessBase"]
[SourceQuality "1"]
[TimeControl "5400+30"]

{[%evp 17,84,12,8,18,8,-6,8,-5,0,16,12,16,19,14,23,34,26,26,18,21,0,-15,6,-10,0,-34,-25,-62,-12,-12,-4,0,0,-8,-13,-29,0,0,-3,0,0,-11,-8,-197,-194,-270,-284,-277,-279,-325,-318,-418,-408,-515,-492,-675,-475,-650,-643,-639,-627,-620,-622,-676,-529,-811,-811,-811,-799]} 1. Nf3 {[%emt 0:00:08]} Nf6 {[%emt 0:00:17]} 2. c4 {[%emt 0:00:31]} c5 {[%emt 0:00:03]} 3. Nc3 {[%emt 0:00:17]} Nc6 {[%emt 0:00:13]} 4. g3 {[%emt 0:00:08]} g6 {[%emt 0:00:08]} 5. Bg2 {[%emt 0:00:08]} Bg7 {[%emt 0:00:04]} 6. O-O {[%emt 0:00:06]} O-O {[%emt 0:00:06]} 7. d4 {[%emt 0:00:05]} cxd4 {[%emt 0:00:04]} 8. Nxd4 {[%emt 0:00:06]} Qa5 {[%emt 0:00:09]} 9. Nb3 {[%emt 0:03:32]} Qh5 {[%emt 0:01:30]} 10. e4 {[%emt 0:00:55] A39: Symmetrical English vs ...g6: 4 Bg2 Bg7 5 Nf3 Nf6 6 0-0 0-0 7 d4.} d6 $1 {[%emt 0:09:01] 10...d6 scores better than 10...Qxd1.} 11. Qxh5 {[%emt 0:04:53]} Nxh5 {[%emt 0:00:41]} 12. Rd1 {[%emt 0:03:01] The position is equal.} Bxc3 {[%emt 0:06:18]} 13. bxc3 {[%emt 0:00:24]} Bg4 {[%emt 0:00:11]} 14. f3 {[%emt 0:06:19]} Be6 {[%emt 0:00:51]} 15. c5 {[%emt 0:01:35]} Bxb3 {[%emt 0:00:48]} 16. axb3 {[%emt 0:00:09]} dxc5 {[%emt 0:00:04] [#]} 17. Be3 $146 {[%emt 0:03:51]} ({Predecessor:} 17. f4 Rfd8 18. Be3 b6 19. e5 Rxd1+ 20. Rxd1 Rd8 21. Rxd8+ Nxd8 22. Kf2 Kf8 23. Ke2 {½-½ (57) Bu,X (2729)-Ponomariov,R (2675) Hengshui 2019}) 17... b6 {[%emt 0:03:15]} 18. f4 {[%emt 0:04:48][%mdl 1024] White has compensation.} e5 {[%emt 0:05:43]} 19. Bf3 {[%emt 0:05:48]} Ng7 {[%emt 0:02:11]} 20. Rd6 {[%emt 0:08:21]} Na5 {[%emt 0:01:12]} 21. Bd1 {[%emt 0:03:24]} exf4 {[%emt 0:05:03]} 22. gxf4 {[%emt 0:05:11]} Rfe8 {[%emt 0:04:08]} (22... Ne8 $1 $15 23. Rd3 c4 24. bxc4 Nxc4) 23. Kf2 $11 {[%emt 0:07:48]} Rac8 {[%emt 0:06:08]} 24. Bc2 {[%emt 0:04:20]} Re7 {[%emt 0:02:01]} 25. Rad1 {[%emt 0:01:11]} Ne8 {[%emt 0:04:03]} 26. Rd7 {[%emt 0:01:25]} Rc7 {[%emt 0:01:29]} 27. Rxc7 {[%emt 0:02:11]} Nxc7 {[%emt 0:02:31]} 28. Kf3 {[%emt 0:02:12]} Kg7 {[%emt 0:05:06]} 29. Bf2 {[%emt 0:01:26]} Nb5 {[%emt 0:02:20]} 30. Ra1 $2 {[%emt 0:07:48] Loses the game.} (30. b4 $11 Nxc3 31. bxa5 Nxd1 32. Bxd1) 30... Nxc3 $19 {[%emt 0:13:01]} 31. Be1 {[%emt 0:15:55]} (31. Bxc5 {was called for.} Nxb3 32. Bxe7 Nxa1 33. Bd3) 31... Nb5 {[%emt 0:01:05] [#] ...Nd4+ is the strong threat.} 32. Bxa5 {[%emt 0:01:28][%cal Of3e3]} Nd4+ {[%emt 0:00:35]} ({Inferior is} 32... bxa5 33. Ke3 $17) 33. Kg3 {[%emt 0:01:26] aiming for Bc3.} bxa5 {[%emt 0:02:17][%mdl 4096] Endgame KRB-KRN} ({But not} 33... Nxc2 $2 34. Bc3+ Nd4 35. Bxd4+ cxd4 36. Kf3 $19) 34. Bd1 {[%emt 0:00:18]} Rxe4 {[%emt 0:00:19]} 35. Rxa5 {[%emt 0:00:15]} Re1 {[%emt 0:10:54] Black is clearly winning.} 36. Bg4 {[%emt 0:00:17]} f5 {[%emt 0:00:19]} 37. Rxa7+ {[%emt 0:00:11]} Kh6 {[%emt 0:00:07]} 38. Kf2 {[%emt 0:03:18]} Rb1 {[%emt 0:00:09]} 39. Bh3 {[%emt 0:01:26]} Rb2+ {[%emt 0:01:14]} 40. Ke1 {[%emt 0:01:00]} Nf3+ {[%emt 0:00:23]} 41. Kd1 {[%emt 0:00:10]} Rd2+ {[%emt 0:00:06]} 42. Kc1 {[%emt 0:00:21]} Rxh2 {[%emt 0:00:05] Weighted Error Value: White=0.52/Black=0.14 (very precise)} 0-1